{"text_format":"3","workbook":"xlsx","n_sheets":6,"sheets":["P&L","Balance Sheet","Cash Flow","Net Income & EPS Non-GAAP","Segment Results","Core Revenue by Segment (QTD)"],"not_rendered":{"defined_names":25},"read":"whole","date_system":"1900"}

{"sheet":"P&L","index":0,"n_rows":51,"n_cols":8,"rows_kept":51,"merged":[[0,0,0,8],[1,0,1,7],[2,0,2,7],[3,0,3,7],[4,0,4,7],[7,1,7,3],[7,5,7,7],[8,1,8,3],[8,5,8,7],[47,0,47,7],[50,0,50,7],[53,0,53,5]]}
["AGILENT TECHNOLOGIES, INC."]
["CONDENSED CONSOLIDATED STATEMENT OF OPERATIONS"]
["(In millions, except per share amounts)"]
["(Unaudited)"]
["PRELIMINARY"]
[]
[]
[null,"Three Months Ended",{"$nulls":3},"Nine Months Ended"]
[null,"July 31,",{"$nulls":3},"July 31,"]
[null,2021,null,2020,null,2021,null,2020]
[]
["Net revenue",{"v":1586,"d":"$1,586"},null,{"v":1261,"d":"$1,261"},null,{"v":4659,"d":"$4,659"},null,{"v":3856,"d":"$3,856"}]
[]
["Costs and expenses:"]
["Cost of products and services",734,null,592,null,{"v":2152,"d":"2,152"},null,{"v":1807,"d":"1,807"}]
["Research and development",113,null,92,null,325,null,393]
["Selling, general and administrative",403,null,347,null,{"v":1230,"d":"1,230"},null,{"v":1109,"d":"1,109"}]
["Total costs and expenses",{"$f":"SUM(B15:B17)","v":{"v":1250,"d":"1,250"}},null,{"$f":"SUM(D15:D17)","v":{"v":1031,"d":"1,031"}},null,{"$f":"SUM(F15:F17)","v":{"v":3707,"d":"3,707"}},null,{"$f":"SUM(H15:H17)","v":{"v":3309,"d":"3,309"}}]
[]
["Income from operations",{"$f":"B12-B18","v":336},null,{"$f":"D12-D18","v":230},null,{"$f":"F12-F18","v":952},null,{"$f":"H12-H18","v":547}]
[]
["Interest income","—  ",null,1,null,1,null,7]
["Interest expense",{"v":-21,"d":"(21)"},null,{"v":-19,"d":"(19)"},null,{"v":-60,"d":"(60)"},null,{"v":-59,"d":"(59)"}]
["Other income (expense), net",12,null,7,null,19,null,64]
[]
["Income before taxes",{"$f":"SUM(B20:B24)","v":327},null,{"$f":"SUM(D20:D24)","v":219},null,{"$f":"SUM(F20:F24)","v":912},null,{"$f":"SUM(H20:H24)","v":559}]
[]
["Provision for income taxes",63,null,20,null,144,null,62]
[]
["Net income ",{"$f":"B26-B28","v":{"v":264,"d":"$264"}},null,{"$f":"D26-D28","v":{"v":199,"d":"$199"}},null,{"$f":"F26-F28","v":{"v":768,"d":"$768"}},null,{"$f":"H26-H28","v":{"v":497,"d":"$497"}}]
[]
[]
[]
["Net income per share:"]
["                             Basic",{"$f":"B30/B39","v":{"v":0.8712871287128713,"d":"$0.87"}},null,{"$f":"D30/D39","v":{"v":0.6440129449838188,"d":"$0.64"}},null,{"$f":"F30/F39","v":{"v":2.518032786885246,"d":"$2.52"}},null,{"$f":"H30/H39","v":{"v":1.6084142394822007,"d":"$1.61"}}]
["                             Diluted",{"$f":"B30/B40","v":{"v":0.8627450980392157,"d":"$0.86"}},null,{"$f":"D30/D40","v":{"v":0.6378205128205128,"d":"$0.64"}},null,{"$f":"F30/F40","v":{"v":2.501628664495114,"d":"$2.50"}},null,{"$f":"H30/H40","v":{"v":1.5929487179487178,"d":"$1.59"}}]
[]
["Weighted average shares used in computing net income per share:     "]
["                             Basic",303,null,309,null,305,null,309]
["                             Diluted",306,null,312,null,307,null,312]
{"$rows_empty":7}
["The preliminary income statement is estimated based on our current information."]
[]
[]
["Page 1"]

{"sheet":"Balance Sheet","index":1,"n_rows":58,"n_cols":7,"rows_kept":58,"merged":[[0,0,0,7],[1,0,1,7],[2,0,2,7],[3,0,3,7],[4,0,4,7],[57,0,57,6]]}
["AGILENT TECHNOLOGIES, INC."]
["CONDENSED CONSOLIDATED BALANCE SHEET"]
["(In millions, except par value and share amounts)"]
["(Unaudited)"]
["PRELIMINARY"]
[]
[]
[{"$nulls":4},"July 31,",null,"October 31,"]
[{"$nulls":4},2021,null,2020]
["ASSETS"]
[]
["Current assets:"]
[null,"Cash and cash equivalents",null,null,{"v":1428,"d":"$1,428"},null,{"v":1441,"d":"$1,441"}]
[null,"Accounts receivable, net",null,null,{"v":1122,"d":"1,122"},null,{"v":1038,"d":"1,038"}]
[null,"Inventory",null,null,818,null,720]
[null,"Other current assets",null,null,264,null,216]
[null,null,"Total current assets",null,{"$f":"SUM(E13:E16)","v":{"v":3632,"d":"3,632"}},null,{"$f":"SUM(G13:G16)","v":{"v":3415,"d":"3,415"}}]
[]
["Property, plant and equipment, net",{"$nulls":3},905,null,845]
["Goodwill and other intangible assets, net",{"$nulls":3},{"$f":"3976+1032","v":{"v":5008,"d":"5,008"}},null,{"$f":"3602+831","v":{"v":4433,"d":"4,433"}}]
["Long-term investments",{"$nulls":3},204,null,158]
["Other assets",{"$nulls":3},742,null,776]
[null,null,"Total assets",null,{"$f":"SUM(E17:E22)","v":{"v":10491,"d":"$10,491"}},null,{"$f":"SUM(G17:G22)","v":{"v":9627,"d":"$9,627"}}]
[]
["LIABILITIES AND EQUITY"]
[]
["Current liabilities:"]
[null,"Accounts payable",null,null,{"v":416,"d":"$416"},null,{"v":354,"d":"$354"}]
[null,"Employee compensation and benefits",null,null,423,null,367]
[null,"Deferred revenue",null,null,443,null,386]
[null,"Short-term debt",null,null,130,null,75]
[null,"Other accrued liabilities",null,null,312,null,285]
[null,null,"Total current liabilities",null,{"$f":"SUM(E28:E32)","v":{"v":1724,"d":"1,724"}},null,{"$f":"SUM(G28:G32)","v":{"v":1467,"d":"1,467"}}]
[]
["Long-term debt",{"$nulls":3},{"v":2728,"d":"2,728"},null,{"v":2284,"d":"2,284"}]
["Retirement and post-retirement benefits",{"$nulls":3},365,null,389]
["Other long-term liabilities",{"$nulls":3},728,null,614]
[null,null,"Total liabilities",null,{"$f":"SUM(E33:E37)","v":{"v":5545,"d":"5,545"}},null,{"$f":"SUM(G33:G37)","v":{"v":4754,"d":"4,754"}}]
[]
["Total Equity:"]
[null,"Stockholders' equity:"]
[null,"Preferred stock; $0.01 par value; 125 million"]
[null,null,"shares authorized; none issued and outstanding",null,"—  ",null,"—  "]
[null,"Common stock; $0.01 par value, 2 billion"]
[null,null,"shares authorized; 303 million shares at July 31, 2021"]
[null,null,"and 306 million shares at October 31, 2020, issued and outstanding",null,3,null,3]
[null,"Additional paid-in-capital",null,null,{"v":5307,"d":"5,307"},null,{"v":5311,"d":"5,311"}]
[null,"Retained earnings",null,null,90,null,81]
[null,"Accumulated other comprehensive loss",null,null,{"v":-454,"d":"(454)"},null,{"v":-522,"d":"(522)"}]
[null,null,"Total stockholders' equity",null,{"$f":"SUM(E43:E49)","v":{"v":4946,"d":"4,946"}},null,{"$f":"SUM(G43:G49)","v":{"v":4873,"d":"4,873"}}]
[{"$nulls":3},"Total liabilities and stockholders' equity",{"$f":"E38+E50","v":{"v":10491,"d":"$10,491"}},null,{"$f":"G38+G50","v":{"v":9627,"d":"$9,627"}}]
[]
[]
[]
["The preliminary balance sheet is estimated based on our current information."]
[]
[]
["Page 2"]

{"sheet":"Cash Flow","index":2,"n_rows":79,"n_cols":8,"rows_kept":79,"merged":[[0,0,0,7],[1,0,1,7],[2,0,2,7],[3,0,3,7],[4,0,4,7],[7,5,7,7],[78,0,78,7]]}
["AGILENT TECHNOLOGIES, INC."]
["CONDENSED CONSOLIDATED STATEMENT OF CASH FLOWS"]
["(In millions)"]
["(Unaudited)"]
["PRELIMINARY"]
[]
[]
[{"$nulls":5},"Nine Months Ended"]
[{"$nulls":5},"July 31,",null,"July 31,"]
[{"$nulls":5},2021,null,2020]
["Cash flows from operating activities:"]
[null,"Net income",{"$nulls":3},{"v":768,"d":"$768"},null,{"v":497,"d":"$497"}]
[]
["Adjustments to reconcile net income to net cash provided by operating activities:"]
[null,"Depreciation and amortization",{"$nulls":3},{"$f":"91+146","v":237},null,232]
[null,"Share-based compensation",{"$nulls":3},88,null,63]
[null,"Excess and obsolete inventory related charges",{"$nulls":3},21,null,18]
[null,"Loss on extinguishment of debt",{"$nulls":3},17,null,"—  "]
[null,"Asset impairment charges",{"$nulls":3},2,null,99]
[null,"Unrealized gain on equity securities, net",{"$nulls":3},{"v":-19,"d":"(19)"},null,{"v":-26,"d":"(26)"}]
[null,"Other non-cash expenses, net",{"$nulls":3},{"$f":"1","v":1},null,6]
[null,"Changes in assets and liabilities:"]
[null,null,"Accounts receivable, net",null,null,{"v":-69,"d":"(69)"},null,1]
[null,null,"Inventory",null,null,{"v":-115,"d":"(115)"},null,{"v":-86,"d":"(86)"}]
[null,null,"Accounts payable",null,null,46,null,{"v":-35,"d":"(35)"}]
[null,null,"Employee compensation and benefits",null,null,38,null,{"v":-32,"d":"(32)"}]
[null,null,"Other assets and liabilities ",null,null,{"$f":"-12+41","v":29},null,{"v":-193,"d":"(193)"}]
["Net cash provided by operating activities (a)",{"$nulls":4},{"$f":"SUM(F12:F27)","v":{"v":1044,"d":"1,044"}},null,{"$f":"SUM(H12:H27)","v":544}]
[]
["Cash flows from investing activities:"]
[null,"Investments in property, plant and equipment",{"$nulls":3},{"v":-126,"d":"(126)"},null,{"v":-92,"d":"(92)"}]
[null,"Proceeds from sale of property, plant and equipment",{"$nulls":3},"—  ",null,1]
[null,"Payment to acquire fair value investments",{"$nulls":3},{"v":-15,"d":"(15)"},null,{"v":-20,"d":"(20)"}]
[null,"Payment to acquire intangible assets",{"$nulls":3},{"v":-1,"d":"(1)"},null,"—  "]
[null,"Payment in exchange for convertible note",{"$nulls":3},{"v":-2,"d":"(2)"},null,{"v":-9,"d":"(9)"}]
[null,"Acquisition of businesses and intangible assets, net of cash acquired",{"$nulls":3},{"v":-546,"d":"(546)"},null,"—  "]
["Net cash used in investing activities",{"$nulls":4},{"$f":"SUM(F31:F36)","v":{"v":-690,"d":"(690)"}},null,{"$f":"SUM(H31:H36)","v":{"v":-120,"d":"(120)"}}]
[]
["Cash flows from financing activities:"]
[null,"Issuance of common stock under employee stock plans",{"$nulls":3},52,null,56]
[null,"Payment of taxes related to net share settlement of equity awards ",{"$nulls":3},{"v":-74,"d":"(74)"},null,{"v":-34,"d":"(34)"}]
[null,"Issuance of senior notes",{"$nulls":3},848,null,499]
[null,"Debt issuance costs",{"$nulls":3},{"v":-7,"d":"(7)"},null,{"v":-4,"d":"(4)"}]
[null,"Payment of dividends",{"$nulls":3},{"v":-177,"d":"(177)"},null,{"v":-167,"d":"(167)"}]
[null,"Repayment of senior notes",{"$nulls":3},{"v":-417,"d":"(417)"},null,"—  "]
[null,"Proceeds from commercial paper",{"$nulls":3},{"v":1492,"d":"1,492"},null,240]
[null,"Repayment of commercial paper",{"$nulls":3},{"v":-1437,"d":"(1,437)"},null,{"v":-200,"d":"(200)"}]
[null,"Proceeds from credit facility",{"$nulls":3},"—  ",null,798]
[null,"Repayment of credit facility and short-term loan",{"$nulls":3},"—  ",null,{"v":-1413,"d":"(1,413)"}]
[null,"Repayment of finance lease",{"$nulls":3},"—  ",null,{"v":-4,"d":"(4)"}]
[null,"Treasury stock repurchases",{"$nulls":3},{"v":-652,"d":"(652)"},null,{"v":-219,"d":"(219)"}]
["Net cash used in financing activities",{"$nulls":4},{"$f":"SUM(F38:F51)","v":{"v":-372,"d":"(372)"}},null,{"$f":"SUM(H40:H51)","v":{"v":-448,"d":"(448)"}}]
[]
["Effect of exchange rate movements",{"$nulls":4},6,null,"—  "]
[]
["Net decrease in cash, cash equivalents and restricted cash",{"$nulls":4},{"$f":"F28+F37+F52+F54","v":{"v":-12,"d":"(12)"}},null,{"$f":"H28+H37+H52","v":{"v":-24,"d":"(24)"}}]
[]
["Cash, cash equivalents and restricted cash at beginning of period",{"$nulls":4},{"v":1447,"d":"1,447"},null,{"v":1388,"d":"1,388"}]
[]
["Cash, cash equivalents and restricted cash at end of period",{"$nulls":4},{"$f":"SUM(F56:F58)","v":{"v":1435,"d":"$1,435"}},null,{"$f":"SUM(H56:H58)","v":{"v":1364,"d":"$1,364"}}]
[]
[]
["Reconciliation of cash, cash equivalents and restricted cash to the condensed consolidated balance sheet:"]
[]
[null,"Cash and cash equivalents",{"$nulls":3},{"v":1428,"d":"$1,428"},null,{"v":1358,"d":"$1,358"}]
[null,"Restricted cash, included in other assets",{"$nulls":3},7,null,6]
[null,"Total cash, cash equivalents and restricted cash",{"$nulls":3},{"$f":"SUM(F65:F66)","v":{"v":1435,"d":"$1,435"}},null,{"$f":"SUM(H65:H66)","v":{"v":1364,"d":"$1,364"}}]
[]
[]
["(a) Cash payments included in operating activities:"]
[]
[null,"Income tax paid, net",{"$nulls":3},{"v":164,"d":"$164"},null,{"v":325,"d":"$325"}]
[null,"Interest payments",{"$nulls":3},{"v":53,"d":"$53"},null,{"v":53,"d":"$53"}]
[]
[]
["The preliminary cash flow is estimated based on our current information."]
[]
[]
["Page 3"]

{"sheet":"Net Income & EPS Non-GAAP","index":3,"n_rows":48,"n_cols":15,"rows_kept":48,"merged":[[0,0,0,15],[1,0,1,15],[2,0,2,15],[3,0,3,15],[4,0,4,15],[6,4,6,8],[6,10,6,14],[7,4,7,8],[7,10,7,14],[9,7,9,8],[9,13,9,14],[23,0,23,14],[24,0,24,9],[25,0,25,14],[26,1,26,14],[27,1,27,14],[28,1,28,14],[29,1,29,14],[30,1,30,14],[31,1,31,14],[32,1,32,14],[33,1,33,14],[34,1,34,14],[35,1,35,14],[36,1,36,14],[38,0,38,14],[40,0,40,14],[42,0,42,14],[45,0,45,14],[47,0,47,14]]}
["AGILENT TECHNOLOGIES, INC."]
["NON-GAAP NET INCOME AND DILUTED EPS RECONCILIATIONS"]
["(In millions, except per share amounts)"]
["(Unaudited)"]
["PRELIMINARY"]
[]
[{"$nulls":4},"Three Months Ended",{"$nulls":5},"Nine Months Ended"]
[{"$nulls":4},"July 31,",{"$nulls":5},"July 31,"]
[{"$nulls":4},2021,"Diluted EPS",null,2020,"Diluted EPS",null,2021,"Diluted EPS",null,2020,"Diluted EPS"]
[]
["GAAP net income",{"$nulls":3},{"v":264,"d":"$264"},{"v":0.86,"d":"$0.86"},null,{"v":199,"d":"$199"},{"v":0.64,"d":"$0.64"},null,{"v":768,"d":"$768"},{"v":2.5,"d":"$2.50"},null,{"v":497,"d":"$497"},{"v":1.59,"d":"$1.59"}]
[null,"Non-GAAP adjustments:"]
[null,null,"Asset impairments",null,"—","—",null,"—","—",null,2,0.01,null,99,0.32]
[null,null,"Intangible amortization",null,53,0.17,null,45,0.15,null,143,0.47,null,139,0.45]
[null,null,"Transformational initiatives",null,12,0.04,null,13,0.04,null,32,{"v":0.1,"d":"0.10"},null,41,0.13]
[null,null,"Acquisition and integration costs",null,10,0.03,null,9,0.03,null,32,{"v":0.1,"d":"0.10"},null,33,0.11]
[null,null,"Loss on extinguishment of debt",null,"—","—",null,"—","—",null,17,0.06,null,"—","—"]
[null,null,"Business exit and divestiture costs",null,"—","—",null,"—","—",null,4,0.01,null,"—","—"]
[null,null,"Other",null,{"$f":"1-8","v":{"v":-7,"d":"(7)"}},{"v":-0.03,"d":"(0.03)"},null,2,"—",null,{"$f":"1+1-14","v":{"v":-12,"d":"(12)"}},{"v":-0.05,"d":"(0.05)"},null,{"v":-21,"d":"(21)"},{"v":-0.07,"d":"(0.07)"}]
[null,null,"Adjustment for taxes (a)",null,5,0.03,null,{"v":-25,"d":"(25)"},{"v":-0.08,"d":"(0.08)"},null,{"v":-22,"d":"(22)"},{"v":-0.06,"d":"(0.06)"},null,{"v":-70,"d":"(70)"},{"v":-0.23,"d":"(0.23)"}]
["Non-GAAP net income",{"$nulls":3},{"$f":"SUM(E11:E20)","v":{"v":337,"d":"$337"}},{"$f":"SUM(F11:F20)","v":{"v":1.1,"d":"$1.10"}},null,{"$f":"SUM(H11:H20)","v":{"v":243,"d":"$243"}},{"$f":"SUM(I11:I20)","v":{"v":0.7800000000000001,"d":"$0.78"}},null,{"$f":"SUM(K11:K20)","v":{"v":964,"d":"$964"}},{"$f":"SUM(L11:L20)","v":{"v":3.1399999999999997,"d":"$3.14"}},null,{"$f":"SUM(N11:N20)","v":{"v":718,"d":"$718"}},{"$f":"SUM(O11:O20)","v":{"v":2.3000000000000003,"d":"$2.30"}}]
[]
[]
["(a) The adjustment for taxes excludes tax expense (benefits) that management believes are not directly related to on-going operations and which are either isolated or cannot be expected to occur again with any regularity or predictability. For the three and nine months ended July 31, 2021, management used a non-GAAP effective tax rate of 14.75%.  For the three and nine months ended July 31, 2020, management used a non-GAAP effective tax rate of 15.50%."]
[]
["We provide non-GAAP net income and non-GAAP net income per share amounts in order to provide meaningful supplemental information regarding our operational performance and our prospects for the future. These supplemental measures exclude, among other things, charges related to asset impairments, amortization of intangibles, transformational initiatives, acquisition and integration costs, loss on extinguishment of debt and business exit and divestiture costs."]
[null,"Asset impairments include assets that have been written down to their fair value."]
[null,"Transformational initiatives include expenses associated with targeted cost reduction activities such as manufacturing transfers including costs to move manufacturing, small site consolidations, legal entity and other business reorganizations, insourcing or outsourcing of activities. Such costs may include move and relocation costs, one-time termination benefits and other one-time reorganization costs. Included in this category are also expenses associated with company programs to transform our product lifecycle management (PLM) system, human resources and financial systems.\n\n"]
[null,"Acquisition and integration costs include all incremental expenses incurred to effect a business combination. Such acquisition costs may include advisory, legal, accounting, valuation, and other professional or consulting fees. Such integration costs may include expenses directly related to integration of business and facility operations, the transfer of assets and intellectual property, information technology systems and infrastructure and other employee-related costs. \n"]
[null,"Pension settlement loss relates to the relief of the US Retirement Plan pension obligation due to increased lump sum payouts over a specified accounting threshold. "]
[null,"Loss on extinguishment of debt relates to the net loss recorded on the redemption of $100 million of the $400 million outstanding 3.2% 2022 senior notes due on October 1, 2022, called on December 22, 2020 and settled on January 21, 2021 and the net loss recorded on the redemption of the remaining $300 million called on March 5, 2021 and settled on April 5, 2021."]
[null,"Business exit and divestiture costs include costs associated with business divestitures. "]
[null,"NASD site costs include all the costs related to the expansion of our manufacturing of nucleic acid active pharmaceutical ingredients incurred prior to the commencement of commercial manufacturing. "]
[null,"Special compliance costs include costs associated with transforming our processes to implement new regulations such as data privacy regulations, revenue recognition, lease accounting and certain tax reporting requirements."]
[null,"Acceleration of share-based compensation expense represents stock-based compensation expense that was accelerated upon employees’ involuntary termination from the company."]
[null,"Other includes certain legal costs and settlements, net unrealized gains related to our equity securities and acceleration of share-based compensation expense in addition to other miscellaneous adjustments."]
[null,"Tax benefit on intra-entity asset transfer relates to our operations in Singapore along with our application of the new accounting rules for income tax consequences of intra-entity transfer of assets as adopted on November 1, 2018."]
[]
["Our management uses non-GAAP measures to evaluate the performance of our core businesses, to estimate future core performance and to compensate employees. Since management finds this measure to be useful, we believe that our investors benefit from seeing our results “through the eyes” of management in addition to seeing our GAAP results. This information facilitates our management’s internal comparisons to our historical operating results as well as to the operating results of our competitors."]
[]
["Our management recognizes that items such as amortization of intangibles can have a material impact on our cash flows and/or our net income. Our GAAP financial statements including our statement of cash flows portray those effects. Although we believe it is useful for investors to see core performance free of special items, investors should understand that the excluded items are actual expenses that may impact the cash available to us for other uses. To gain a complete picture of all effects on the company’s profit and loss from any and all events, management does (and investors should) rely upon the GAAP income statement. The non-GAAP numbers focus instead upon the core business of the company, which is only a subset, albeit a critical one, of the company’s performance."]
[]
["Readers are reminded that non-GAAP numbers are merely a supplement to, and not a replacement for, GAAP financial measures. They should be read in conjunction with the GAAP financial measures. It should be noted as well that our non-GAAP information may be different from the non-GAAP information provided by other companies."]
[]
["The preliminary non-GAAP net income and diluted EPS reconciliation is estimated based on our current information."]
[]
[]
["Page 4"]

{"sheet":"Segment Results","index":4,"n_rows":68,"n_cols":5,"rows_kept":68,"merged":[[0,0,0,4],[0,5,0,8],[1,0,1,4],[2,0,2,4],[3,0,3,4],[4,0,4,4],[7,0,7,4],[33,0,33,4],[60,0,60,4],[62,0,62,4],[67,0,67,4]]}
["AGILENT TECHNOLOGIES, INC."]
["SEGMENT INFORMATION"]
["(In millions, except where noted)"]
["(Unaudited)"]
["PRELIMINARY"]
[]
[]
["Quarter-over-Quarter"]
[]
["Life Sciences and Applied Markets Group"]
[null,null,"Q3'21",null,"Q3'20"]
["Revenue",null,{"v":680,"d":"$680"},null,{"v":557,"d":"$557"}]
["Gross Margin, %",null,{"v":0.6,"d":"60.0%"},null,{"v":0.593,"d":"59.3%"}]
["Income from Operations",null,{"v":170,"d":"$170"},null,{"v":126,"d":"$126"}]
["Operating margin, %",null,{"v":0.25,"d":"25.0%"},null,{"v":0.226,"d":"22.6%"}]
[]
[]
["Diagnostics and Genomics Group"]
[null,null,{"$f":"C11","v":"Q3'21"},null,{"$f":"E11","v":"Q3'20"}]
["Revenue",null,{"v":346,"d":"$346"},null,{"v":241,"d":"$241"}]
["Gross Margin, %",null,{"v":0.535,"d":"53.5%"},null,{"v":0.498,"d":"49.8%"}]
["Income from Operations",null,{"v":78,"d":"$78"},null,{"v":41,"d":"$41"}]
["Operating margin, %",null,{"v":0.226,"d":"22.6%"},null,{"v":0.172,"d":"17.2%"}]
[]
[]
["Agilent CrossLab Group"]
[null,null,{"$f":"C11","v":"Q3'21"},null,{"$f":"E11","v":"Q3'20"}]
["Revenue",null,{"v":560,"d":"$560"},null,{"v":463,"d":"$463"}]
["Gross Margin, %",null,{"v":0.525,"d":"52.5%"},null,{"v":0.526,"d":"52.6%"}]
["Income from Operations",null,{"v":164,"d":"$164"},null,{"v":132,"d":"$132"}]
["Operating margin, %",null,{"v":0.293,"d":"29.3%"},null,{"v":0.284,"d":"28.4%"}]
[]
[]
["Year-over-Year"]
[]
["Life Sciences and Applied Markets Group"]
[null,null,"FY20",null,"FY19"]
["Revenue",null,{"v":2392,"d":"$2,392"},null,{"v":2302,"d":"$2,302"}]
["Gross Margin, %",null,{"v":0.592,"d":"59.2%"},null,{"v":0.61,"d":"61.0%"}]
["Income from Operations",null,{"v":548,"d":"$548"},null,{"v":542,"d":"$542"}]
["Operating margin, %",null,{"v":0.229,"d":"22.9%"},null,{"v":0.235,"d":"23.5%"}]
[]
[]
["Diagnostics and Genomics Group"]
[null,null,{"$f":"C37","v":"FY20"},null,{"$f":"E37","v":"FY19"}]
["Revenue",null,{"v":1047,"d":"$1,047"},null,{"v":1021,"d":"$1,021"}]
["Gross Margin, %",null,{"v":0.519,"d":"51.9%"},null,{"v":0.547,"d":"54.7%"}]
["Income from Operations",null,{"v":192,"d":"$192"},null,{"v":185,"d":"$185"}]
["Operating margin, %",null,{"v":0.183,"d":"18.3%"},null,{"v":0.182,"d":"18.2%"}]
[]
[]
["Agilent CrossLab Group"]
[null,null,{"$f":"C37","v":"FY20"},null,{"$f":"E37","v":"FY19"}]
["Revenue",null,{"v":1900,"d":"$1,900"},null,{"v":1840,"d":"$1,840"}]
["Gross Margin, %",null,{"v":0.522,"d":"52.2%"},null,{"v":0.518,"d":"51.8%"}]
["Income from Operations",null,{"v":516,"d":"$516"},null,{"v":475,"d":"$475"}]
["Operating margin, %",null,{"v":0.272,"d":"27.2%"},null,{"v":0.258,"d":"25.8%"}]
[]
[]
[]
["Income from operations reflect the results of our reportable segments under Agilent's management reporting system which are not necessarily in conformity with GAAP financial measures. Income from operations of our reporting segments exclude, among other things, charges related to amortization of intangibles, transformational initiatives and acquisition and integration costs."]
[]
["Readers are reminded that non-GAAP numbers are merely a supplement to, and not a replacement for, GAAP financial measures.  They should be read in conjunction with the GAAP financial measures.  It should be noted as well that our non-GAAP information may be different from the non-GAAP information provided by other companies."]
[]
["The preliminary segment information is estimated based on our current information. "]
[]
[]
["Page 5"]

{"sheet":"Core Revenue by Segment (QTD)","index":5,"n_rows":45,"n_cols":9,"rows_kept":45,"merged":[[0,0,0,8],[1,0,1,8],[2,0,2,8],[3,0,3,8],[4,0,4,8],[5,0,5,8],[7,1,7,8],[9,1,9,3],[21,1,21,3],[21,5,21,6],[22,6,23,6],[22,8,23,8],[32,0,32,8],[34,0,34,8],[36,0,36,8],[38,0,38,8],[41,0,41,8],[44,0,44,8]]}
["AGILENT TECHNOLOGIES, INC."]
["RECONCILIATIONS OF REVENUE BY SEGMENT"]
["EXCLUDING ACQUISITIONS, DIVESTITURES AND THE IMPACT OF CURRENCY ADJUSTMENTS (CORE)"]
["(in millions)"]
["(Unaudited)"]
["PRELIMINARY"]
[]
[null,"Year-over-Year"]
[]
[null,"GAAP"]
[{"$nulls":3},"Year-over-Year"]
["GAAP Revenue by Segment","Q3'21","Q3'20","% Change"]
[]
["Life Sciences and Applied Markets Group",{"v":680,"d":"$680"},{"v":557,"d":"$557"},{"v":0.221,"d":"22%"}]
["Diagnostics and Genomics Group",346,241,{"v":0.437,"d":"44%"}]
["Agilent CrossLab Group",560,463,{"v":0.209,"d":"21%"}]
["Agilent",{"$f":"SUM(B14:B16)","v":{"v":1586,"d":"$1,586"}},{"$f":"SUM(C14:C16)","v":{"v":1261,"d":"$1,261"}},{"v":0.258,"d":"26%"}]
[]
[]
[]
[]
[null,"Non-GAAP \n(excluding Acquisitions & Divestitures)",{"$nulls":3},"Year-over-Year\nat Constant Currency (a)"]
[{"$nulls":3},"Year-over-Year",null,"Year-over-Year","Percentage Point Impact from Currency",null,"Current Quarter Currency Impact (b)"]
["Non GAAP Revenue by Segment",{"$f":"B12","v":"Q3'21"},{"$f":"C12","v":"Q3'20"},"% Change",null,"% Change"]
[]
["Life Sciences and Applied Markets Group",{"v":680,"d":"$680"},{"v":557,"d":"$557"},{"v":0.22,"d":"22%"},null,{"v":0.18,"d":"18%"},"4 ppts",null,{"v":21,"d":"$21"}]
["Diagnostics and Genomics Group ",340,241,{"v":0.41,"d":"41%"},null,{"v":0.37,"d":"37%"},"4 ppts",null,10]
["Agilent CrossLab Group ",560,463,{"v":0.21,"d":"21%"},null,{"v":0.15,"d":"15%"},"6 ppts",null,26]
["Agilent (Core)",{"$f":"SUM(B26:B28)","v":{"v":1580,"d":"$1,580"}},{"$f":"SUM(C26:C28)","v":{"v":1261,"d":"$1,261"}},{"v":0.25,"d":"25%"},null,{"v":0.21,"d":"21%"},"4 ppts",null,{"$f":"SUM(I26:I28)","v":{"v":57,"d":"$57"}}]
[]
[]
[]
["We compare the year-over-year change in revenue excluding the effect of recent acquisitions and divestitures and foreign currency rate fluctuations to assess the performance of our underlying business.  "]
[]
["(a) The constant currency year-over-year growth percentage is calculated by recalculating all periods in the comparison period at the foreign currency exchange rates used for accounting during the last month of the current quarter and then using those revised values to calculate the year-over-year percentage change."]
[]
["(b) The dollar impact from the current quarter currency impact is equal to the total year-over-year dollar change less the constant currency year-over-year change."]
[]
["The preliminary reconciliation of GAAP revenue adjusted for recent acquisitions and divestitures and impact of currency is estimated based on our current information."]
[]
[]
[]
[]
[]
["Page 6"]